fUST/lending_fUST_20250328
["ID","MTS","AMOUNT","RATE_DAILY","PERIOD"]
[356760928,1743136247988,-514.22,0.00035616,17]
[356760929,1743136247998,-500.0,0.00035616,17]
[356760930,1743136248007,-500.0,0.00035616,17]
[356760931,1743136248016,-775.39,0.00035616,17]
[356760932,1743136248025,-1494.38,0.00035616,17]
[356760933,1743136248035,-506.80974564,0.00035616,17]
[356760934,1743136248044,-534.77210789,0.00035616,17]
[356760935,1743136248054,-500.0,0.00035616,17]
[356760936,1743136248063,-503.90709025,0.00035616,17]
[356760937,1743136248073,-500.0,0.00035616,17]
[356760938,1743136248082,-500.0,0.00035616,17]
[356760939,1743136248091,-730.3,0.00035616,17]
[356760940,1743136248101,-500.0,0.00035616,17]
[356760941,1743136248111,-500.0,0.00035616,17]
[356760942,1743136248120,-500.0,0.00035616,17]
[356760943,1743136248130,-530.78505649,0.00035616,17]
[356760944,1743136248140,-500.0,0.00035616,17]
[356760945,1743136248149,-500.0,0.00035616,17]
[356760946,1743136248159,-517.44,0.00035616,17]
[356760947,1743136248169,-500.0,0.00035616,17]
[356760948,1743136248179,-500.0,0.00035616,17]
[356760949,1743136248189,-500.0,0.00035616,17]
[356760950,1743136248199,-500.0,0.00035616,17]
[356760951,1743136248208,-500.0,0.00035616,17]
[356760952,1743136248217,-500.0,0.00035616,17]
[356760953,1743136248227,-500.0,0.00035616,17]
[356760954,1743136248237,-625.07958929,0.00035616,17]
[356760955,1743136248246,-500.0,0.00035616,17]
[356760956,1743136248256,-500.0,0.00035616,17]
[356760957,1743136248266,-556.92013382,0.00035616,17]
[356760958,1743136248275,-500.0,0.00035616,17]
[356760959,1743136248284,-500.0,0.00035616,17]
[356760960,1743136248294,-1445.8,0.00035616,17]
[356760961,1743136248304,-500.0,0.00035616,17]
[356760962,1743136248313,-801.27,0.00035616,17]
[356760963,1743136248323,-500.0,0.00035616,17]
[356760964,1743136248334,-500.0,0.00035616,17]
[356760965,1743136248344,-500.0,0.00035616,17]
[356760966,1743136248353,-500.0,0.00035616,2]
[356760967,1743136248363,-927.67,0.00035616,17]
[356760968,1743136248514,-500.0,0.00035616,17]
[356760969,1743136248526,-500.0,0.00035616,17]
[356760970,1743136248536,-500.0,0.00035616,17]
[356760971,1743136248546,-500.0,0.00035616,17]
[356760972,1743136248559,-922.23,0.00035616,17]
[356760973,1743136248570,-500.0,0.00035616,17]
[356760974,1743136248581,-500.0,0.00035616,17]
[356760975,1743136248590,-500.0,0.00035616,17]
[356760976,1743136248601,-507.67353636,0.00035616,17]
[356760977,1743136248611,-657.6,0.00035616,17]
[356760978,1743136248622,-500.0,0.00035616,17]
[356760979,1743136248634,-500.0,0.00035616,17]
[356760980,1743136248643,-541.75,0.00035616,17]
[356760981,1743136248653,-500.0,0.00035616,17]
[356760982,1743136248662,-500.0,0.00035616,17]
[356760983,1743136248672,-941.18,0.00035616,17]
[356760984,1743136248683,-500.0,0.00035616,17]
[356760985,1743136248692,-500.0,0.00035616,17]
[356760986,1743136248702,-500.0,0.00035616,17]
[356760987,1743136248713,-515.09,0.00035616,17]
[356760988,1743136248723,-500.0,0.00035616,17]
[356760989,1743136248732,-508.49127457,0.00035616,17]
[356760990,1743136248742,-500.0,0.00035616,17]
[356760991,1743136248753,-500.0,0.00035616,17]
[356760992,1743136248763,-2206.32,0.00035616,17]
[356760993,1743136248773,-500.0,0.00035616,17]
[356760994,1743136248783,-2229.96,0.00035616,17]
[356760995,1743136248793,-500.0,0.00035616,17]
[356760996,1743136248802,-500.0,0.00035616,17]
[356760997,1743136248812,-500.0,0.00035616,17]
[356760998,1743136248821,-2646.82,0.00035616,17]
[356760999,1743136248832,-500.0,0.00035616,17]
[356761000,1743136248842,-500.0,0.00035616,17]
[356761001,1743136248852,-500.0,0.00035616,17]
[356761002,1743136248861,-500.0,0.00035616,17]
[356761003,1743136248871,-506.71977928,0.00035616,17]
[356761004,1743136248881,-2095.47,0.00035616,17]
[356761005,1743136248891,-500.0,0.00035616,17]
[356761006,1743136248901,-500.0,0.00035616,17]
[356761007,1743136248911,-500.0,0.00035616,17]
[356761008,1743136248922,-500.0,0.00035616,17]
[356761009,1743136248932,-500.0,0.00035616,17]
[356761010,1743136248942,-500.0,0.00035616,17]
[356761011,1743136248952,-500.0,0.00035616,17]
[356761012,1743136248961,-500.0,0.00035616,17]
[356761013,1743136248971,-504.39811144,0.00035616,17]
[356761014,1743136248980,-500.0,0.00035616,17]
[356761015,1743136248990,-500.0,0.00035616,17]
[356761016,1743136249001,-500.0,0.00035616,17]
[356761017,1743136249010,-500.0,0.00035616,17]
[356761018,1743136249026,-1721.98,0.00035616,17]
[356761019,1743136249036,-500.0,0.00035616,17]
[356761020,1743136249046,-500.0,0.00035616,17]
[356761021,1743136249057,-500.0,0.00035616,17]
[356761022,1743136249067,-500.0,0.00035616,17]
[356761023,1743136249077,-1094.38,0.00035616,17]
[356761024,1743136249089,-500.0,0.00035616,17]
[356761025,1743136249099,-686.3,0.00035616,17]
[356761026,1743136249109,-151.0,0.00035616,14]
[356761027,1743136249119,-151.0,0.00035616,14]
[356761028,1743136249129,-961.2,0.00035616,17]
[356761029,1743136249139,-151.0,0.00035616,14]
[356761030,1743136249148,-151.0,0.00035616,14]
[356761031,1743136249158,-151.0,0.00035616,14]
[356761032,1743136249167,-151.0,0.00035616,14]
[356761033,1743136249177,-151.0,0.00035616,14]
[356761034,1743136249187,-151.0,0.00035616,14]
[356761035,1743136249197,-3882.7,0.00035616,17]
[356761036,1743136249207,-274.650807,0.00035616,14]
[356761037,1743136249217,-963.25,0.00035616,17]
[356761038,1743136249227,-1288.78,0.00035616,17]
[356761039,1743136249237,-500.0,0.00035616,17]
[356761040,1743136249247,-623.13911177,0.00035616,17]
[356761041,1743136249258,-500.0,0.00035616,17]
[356761042,1743136249268,-500.0,0.00035616,17]
[356761043,1743136249278,-1665.12,0.00035616,17]
[356761044,1743136249288,-4068.92,0.00035616,17]
[356761045,1743136249297,-500.0,0.00035616,17]
[356761046,1743136249307,-500.0,0.00035616,17]
[356761047,1743136249317,-500.0,0.00035616,17]
[356761048,1743136249326,-500.0,0.00035616,17]
[356761049,1743136249338,-500.0,0.00035616,17]
[356761050,1743136249347,-500.0,0.00035616,17]
[356761051,1743136249357,-500.0,0.00035616,17]
[356761052,1743136249366,-510.73857548,0.00035616,17]
[356761053,1743136249376,-500.0,0.00035616,17]
[356761054,1743136249385,-3502.9,0.00035616,17]
[356761055,1743136249395,-500.0,0.00035616,17]
[356761056,1743136249404,-500.0,0.00035616,17]
[356761057,1743136249413,-4201.67,0.00035616,17]
[356761058,1743136249422,-500.0,0.00035616,17]
[356761059,1743136249431,-500.0,0.00035616,17]
[356761060,1743136249441,-500.0,0.00035616,17]
[356761061,1743136249450,-151.0,0.00035616,14]
[356761062,1743136249459,-151.0,0.00035616,14]
[356761063,1743136249469,-500.0,0.00035616,17]
[356761064,1743136249478,-151.0,0.00035616,14]
[356761065,1743136249488,-500.0,0.00035616,17]
[356761066,1743136249498,-500.0,0.00035616,17]
[356761067,1743136249508,-500.0,0.00035616,17]
[356761068,1743136249517,-654.2,0.00035616,17]
[356761069,1743136249528,-648.69,0.00035616,17]
[356761070,1743136249538,-502.92158215,0.00035616,17]
[356761071,1743136249549,-500.0,0.00035616,17]
[356761072,1743136249561,-500.0,0.00035616,17]
[356761073,1743136249571,-523.77,0.00035616,17]
[356761074,1743136249580,-258.66958781,0.00035616,17]
[356761075,1743136249592,-501.57285287,0.00035616,17]
[356761076,1743136249602,-1547.11,0.00035616,17]
[356761077,1743136249612,-500.0,0.00035616,17]
[356761078,1743136249622,-794.76,0.00035616,17]
[356761079,1743136249632,-500.0,0.00035616,17]
[356761080,1743136249642,-500.0,0.00035616,17]
[356761081,1743136249651,-500.0,0.00035616,17]
[356761082,1743136249660,-500.0,0.00035616,17]
[356761083,1743136249670,-500.0,0.00035616,17]
[356761084,1743136249679,-500.0,0.00035616,17]
[356761085,1743136249689,-500.0,0.00035616,17]
[356761086,1743136249698,-500.0,0.00035616,17]
[356761087,1743136249707,-500.0,0.00035616,17]
[356761088,1743136249716,-500.0,0.00035616,17]
[356761089,1743136249725,-501.40670886,0.00035616,17]
[356761090,1743136249735,-500.0,0.00035616,17]
[356761091,1743136249745,-312.37819879,0.00035616,17]
[356761092,1743136249754,-500.0,0.00035616,17]
[356761093,1743136249764,-594.14,0.00035616,17]
[356761094,1743136249774,-614.39,0.00035616,17]
[356761095,1743136249783,-2187.48,0.00035616,17]
[356761096,1743136249793,-500.0,0.00035616,17]
[356761097,1743136249802,-500.0,0.00035616,17]
[356761098,1743136249812,-500.0,0.00035616,17]
[356761099,1743136249822,-847.41,0.00035616,17]
[356761100,1743136249831,-500.0,0.00035616,17]
[356761101,1743136249841,-638.89,0.00035616,17]
[356761102,1743136249850,-1815.87,0.00035616,17]
[356761103,1743136249860,-500.0,0.00035616,17]
[356761104,1743136249870,-500.0,0.00035616,17]
[356761105,1743136249880,-722.3,0.00035616,17]
[356761106,1743136249890,-500.0,0.00035616,17]
[356761107,1743136249900,-500.0,0.00035616,17]
[356761108,1743136249909,-500.0,0.00035616,17]
[356761109,1743136249919,-742.68,0.00035616,17]
[356761110,1743136249928,-1365.19,0.00035616,17]
[356761111,1743136249938,-151.0,0.00035616,14]
[356761112,1743136249947,-151.0,0.00035616,14]
[356761113,1743136249957,-151.0,0.00035616,14]
[356761114,1743136249966,-151.0,0.00035616,14]
[356761115,1743136249975,-500.0,0.00035616,17]
[356761116,1743136249985,-1106.15,0.00035616,17]
[356761117,1743136249995,-151.0,0.00035616,14]
[356761118,1743136250004,-528.79,0.00035616,17]
[356761119,1743136250014,-151.0,0.00035616,14]
[356761120,1743136250023,-733.51,0.00035616,17]
[356761121,1743136250033,-151.0,0.00035616,14]
[356761122,1743136250043,-500.0,0.00035616,17]
[356761123,1743136250052,-151.0,0.00035616,14]
[356761124,1743136250061,-1971.88,0.00035616,17]
[356761125,1743136250073,-500.0,0.00035616,17]
[356761126,1743136250083,-500.0,0.00035616,17]
[356761127,1743136250092,-500.0,0.00035616,17]
[356761128,1743136250102,-500.0,0.00035616,17]
[356761129,1743136250111,-1425.25,0.00035616,17]
[356761130,1743136250120,-500.0,0.00035616,17]
[356761131,1743136250130,-632.03,0.00035616,17]
[356761132,1743136250140,-500.0,0.00035616,17]
[356761133,1743136250150,-1281.93,0.00035616,17]
[356761134,1743136250159,-500.0,0.00035616,17]
[356761135,1743136250169,-500.0,0.00035616,17]
[356761136,1743136250178,-500.0,0.00035616,17]
[356761137,1743136250188,-500.0,0.00035616,17]
[356761138,1743136250197,-500.0,0.00035616,17]
[356761139,1743136250207,-500.0,0.00035616,17]
[356761140,1743136250216,-500.0,0.00035616,17]
[356761141,1743136250226,-500.0,0.00035616,17]
[356761142,1743136250236,-500.0,0.00035616,17]
[356761143,1743136250245,-500.0,0.00035616,17]
[356761144,1743136250254,-400.10801508,0.00035616,17]
[356761145,1743136250263,-500.0,0.00035616,17]
[356761146,1743136250273,-500.0,0.00035616,17]
[356761147,1743136250282,-500.0,0.00035616,17]
[356761148,1743136250292,-500.0,0.00035616,17]
[356761149,1743136250301,-523.62906921,0.00035616,17]
[356761150,1743136250311,-500.0,0.00035616,17]
[356761151,1743136250320,-500.0,0.00035616,17]
[356761152,1743136250329,-680.34,0.00035616,17]
[356761153,1743136250343,-500.0,0.00035616,17]
[356761154,1743136250352,-898.63,0.00035616,17]
[356761155,1743136250361,-1420.33,0.00035616,17]
[356761156,1743136250371,-500.0,0.00035616,17]
[356761157,1743136250381,-2010.61,0.00035616,17]
[356761158,1743136250390,-500.0,0.00035616,17]
[356761159,1743136250400,-628.17,0.00035616,17]
[356761160,1743136250409,-500.0,0.00035616,17]
[356761161,1743136250419,-500.0,0.00035616,17]
[356761162,1743136250429,-1082.31,0.00035616,17]
[356761163,1743136250439,-158.294782,0.00035616,14]
[356761164,1743136250448,-158.294782,0.00035616,14]
[356761165,1743136250458,-500.0,0.00035616,17]
[356761166,1743136250467,-158.294782,0.00035616,14]
[356761167,1743136250477,-158.294782,0.00035616,14]
[356761168,1743136250486,-500.0,0.00035616,17]
[356761169,1743136250496,-2224.92,0.00035616,17]
[356761170,1743136250506,-158.294782,0.00035616,14]
[356761171,1743136250515,-158.294782,0.00035616,14]
[356761172,1743136250525,-158.294782,0.00035616,14]
[356761173,1743136250535,-527.94,0.00035616,17]
[356761174,1743136250544,-500.0,0.00035616,17]
[356761175,1743136250558,-158.294782,0.00035616,14]
[356761176,1743136250567,-158.294782,0.00035616,14]
[356761177,1743136250577,-158.294782,0.00035616,14]
[356761178,1743136250590,-500.0,0.00035616,17]
[356761179,1743136250599,-158.294782,0.00035616,14]
[356761180,1743136250608,-158.294782,0.00035616,14]
[356761181,1743136250618,-500.0,0.00035616,17]
[356761182,1743136250627,-158.294782,0.00035616,14]
[356761183,1743136250637,-158.294782,0.00035616,14]
[356761184,1743136250647,-158.294782,0.00035616,14]
[356761185,1743136250656,-158.29479,0.00035616,14]
[356761186,1743136250666,-500.0,0.00035616,17]
[356761187,1743136250675,-1025.54,0.00035616,17]
[356761188,1743136250684,-500.0,0.00035616,17]
[356761189,1743136250694,-500.0,0.00035616,17]
[356761190,1743136250703,-500.0,0.00035616,17]
[356761191,1743136250713,-1419.83,0.00035616,17]
[356761192,1743136250722,-1764.8,0.00035616,17]
[356761193,1743136250731,-500.0,0.00035616,17]
[356761194,1743136250740,-772.54,0.00035616,17]
[356761195,1743136250750,-500.0,0.00035616,12]
[356761196,1743136250759,-500.0,0.00035616,17]
[356761197,1743136250768,-654.04,0.00035616,17]
[356761198,1743136250778,-500.0,0.00035616,17]
[356761199,1743136250788,-500.0,0.00035616,17]
[356761200,1743136250797,-500.0,0.00035616,17]
[356761201,1743136250806,-500.0,0.00035616,17]
[356761202,1743136250816,-500.0,0.00035616,17]
[356761203,1743136250825,-1502.56,0.00035616,17]
[356761204,1743136250835,-500.0,0.00035616,17]
[356761205,1743136250845,-500.0,0.00035616,17]
[356761206,1743136250854,-500.0,0.00035616,17]
[356761207,1743136250863,-1195.39,0.00035616,17]
[356761208,1743136250872,-10049.9256007,0.00035616,17]
[356761209,1743136251309,-325.7335775,0.00035616,17]
[356761210,1743136251323,-21845.7208218,0.00035616,17]
[356761211,1743136251332,-500.0,0.00035616,17]
[356761212,1743136251342,-500.0,0.00035616,17]
[356761213,1743136251351,-522.02227104,0.00035616,17]
[356761214,1743136251360,-155.57716716,0.00035616,17]
[356761264,1743137145308,-290.04787368,0.00035416,2]
[356761265,1743137145328,-316.60781783,0.00035516,2]
[356761266,1743137145348,-151.28821919,0.00035545,2]
[356761267,1743137145371,-266.0,0.00035599,2]
[356761268,1743137145392,-154.8524317,0.000356,30]
[356761269,1743137145413,-13673.24601671,0.000356,2]
[356761270,1743137145436,-1906.93958586,0.00035616,2]
[356761271,1743137145457,-21837.4357527,0.00035616,2]
[356761275,1743137226095,-507.5272766,0.00035416,120]
[356761276,1743137226117,-50000.0,0.00035616,2]
[356761277,1743137226138,-506.18620137,0.00035616,17]
[356761278,1743137226160,-500.0,0.00035616,17]
[356761279,1743137226184,-500.0,0.00035616,17]
[356761280,1743137226204,-500.0,0.00035616,17]
[356761281,1743137226225,-500.0,0.00035616,17]
[356761282,1743137226247,-500.0,0.00035616,17]
[356761283,1743137226267,-521.12301505,0.00035616,2]
[356761284,1743137226287,-500.0,0.00035616,17]
[356761285,1743137226306,-500.0,0.00035616,17]
[356761286,1743137226326,-500.0,0.00035616,17]
[356761287,1743137226347,-500.0,0.00035616,17]
[356761288,1743137226367,-500.0,0.00035616,17]
[356761289,1743137226387,-500.0,0.00035616,17]
[356761290,1743137226408,-500.0,0.00035616,17]
[356761291,1743137226429,-500.0,0.00035616,17]
[356761292,1743137226452,-500.0,0.00035616,17]
[356761293,1743137226472,-500.0,0.00035616,17]
[356761294,1743137226493,-500.0,0.00035616,17]
[356761295,1743137226514,-500.0,0.00035616,17]
[356761296,1743137226535,-500.0,0.00035616,17]
[356761297,1743137226555,-500.0,0.00035616,17]
[356761298,1743137226574,-500.0,0.00035616,17]
[356761299,1743137226594,-500.0,0.00035616,17]
[356761300,1743137226614,-500.0,0.00035616,17]
[356761301,1743137226634,-805.17,0.00035616,17]
[356761302,1743137226655,-500.0,0.00035616,17]
[356761303,1743137226675,-500.0,0.00035616,17]
[356761304,1743137226699,-550.63,0.00035616,17]
[356761305,1743137226719,-500.0,0.00035616,17]
[356761306,1743137226738,-500.0,0.00035616,17]
[356761307,1743137226759,-500.0,0.00035616,17]
[356761308,1743137226779,-500.0,0.00035616,17]
[356761309,1743137226799,-500.0,0.00035616,17]
[356761310,1743137226822,-500.0,0.00035616,17]
[356761311,1743137226842,-989.6,0.00035616,17]
[356761312,1743137226863,-642.5255386,0.00035616,17]
[356761313,1743137226883,-532.14,0.00035616,17]
[356761314,1743137226904,-500.0,0.00035616,17]
[356761315,1743137226925,-500.0,0.00035616,17]
[356761316,1743137226949,-500.0,0.00035616,17]
[356761317,1743137226970,-679.9,0.00035616,17]
[356761318,1743137226991,-500.0,0.00035616,17]
[356761319,1743137227014,-500.0,0.00035616,17]
[356761320,1743137227035,-500.0,0.00035616,17]
[356761321,1743137227056,-500.0,0.00035616,17]
[356761322,1743137227078,-500.0,0.00035616,17]
[356761323,1743137227099,-500.0,0.00035616,17]
[356761324,1743137227120,-500.0,0.00035616,17]
[356761325,1743137227141,-500.0,0.00035616,17]
[356761326,1743137227163,-641.1,0.00035616,17]
[356761327,1743137227189,-186.3700242,0.00035616,17]
[356761328,1743137227211,-500.0,0.00035616,17]
[356761329,1743137227233,-500.0,0.00035616,17]
[356761330,1743137227254,-591.58235218,0.00035616,17]
[356761331,1743137227274,-1127.56,0.00035616,17]
[356761332,1743137227294,-500.0,0.00035616,17]
[356761333,1743137227315,-500.0,0.00035616,17]
[356761334,1743137227337,-500.0,0.00035616,17]
[356761335,1743137227357,-678.55,0.00035616,17]
[356761336,1743137227378,-500.0,0.00035616,17]
[356761337,1743137227398,-500.0,0.00035616,17]
[356761338,1743137227418,-500.0,0.00035616,17]
[356761339,1743137227443,-500.0,0.00035616,17]
[356761340,1743137227463,-378.33784061,0.00035616,17]
[356761341,1743137227484,-403.66715057,0.00035616,17]
[356761342,1743137227504,-1147.72,0.00035616,17]
[356761343,1743137227526,-531.90067501,0.00035616,17]
[356761344,1743137227547,-500.0,0.00035616,17]
[356761345,1743137227568,-771.65,0.00035616,17]
[356761346,1743137227590,-500.0,0.00035616,17]
[356761347,1743137227611,-500.0,0.00035616,120]
[356761348,1743137227633,-645.78623196,0.00035616,17]
[356761349,1743137227653,-500.0,0.00035616,17]
[356761350,1743137227674,-500.0,0.00035616,17]
[356761351,1743137227697,-500.0,0.00035616,17]
[356761352,1743137227718,-500.0,0.00035616,17]
[356761353,1743137227739,-500.0,0.00035616,17]
[356761354,1743137227760,-500.0,0.00035616,17]
[356761355,1743137227781,-555.04,0.00035616,7]
[356761356,1743137227801,-828.56,0.00035616,17]
[356761357,1743137227822,-500.0,0.00035616,17]
[356761358,1743137227847,-500.0,0.00035616,17]
[356761359,1743137227869,-500.0,0.00035616,17]
[356761360,1743137227890,-500.0,0.00035616,17]
[356761361,1743137227913,-500.0,0.00035616,17]
[356761362,1743137227938,-668.43,0.00035616,17]
[356761363,1743137227960,-500.0,0.00035616,17]
[356761364,1743137227981,-500.0,0.00035616,17]
[356761365,1743137228002,-580.2,0.00035616,17]
[356761366,1743137228024,-500.0,0.00035616,17]
[356761367,1743137228046,-2237.94,0.00035616,17]
[356761368,1743137228067,-500.0,0.00035616,17]
[356761369,1743137228088,-500.0,0.00035616,17]
[356761370,1743137228259,-500.0,0.00035616,17]
[356761371,1743137228280,-961.87,0.00035616,17]
[356761372,1743137228301,-500.0,0.00035616,17]
[356761373,1743137228322,-500.0,0.00035616,17]
[356761374,1743137228344,-500.0,0.00035616,17]
[356761375,1743137228366,-979.72,0.00035616,17]
[356761376,1743137228386,-500.0,0.00035616,17]
[356761377,1743137228407,-500.0,0.00035616,17]
[356761378,1743137228427,-500.0,0.00035616,17]
[356761379,1743137228452,-545.43,0.00035616,17]
[356761380,1743137228473,-500.0,0.00035616,17]
[356761381,1743137228493,-500.0,0.00035616,17]
[356761382,1743137228514,-210.77048306,0.00035616,17]
[356761383,1743137228536,-1073.92,0.00035616,17]
[356761384,1743137228557,-500.0,0.00035616,17]
[356761385,1743137228579,-323.13408188,0.00035616,17]
[356761386,1743137228600,-500.0,0.00035616,17]
[356761387,1743137228621,-512.61328906,0.00035616,17]
[356761388,1743137228642,-500.0,0.00035616,17]
[356761389,1743137228662,-500.0,0.00035616,17]
[356761390,1743137228683,-500.0,0.00035616,17]
[356761391,1743137228707,-700.19,0.00035616,17]
[356761392,1743137228726,-500.0,0.00035616,17]
[356761393,1743137228746,-777.25,0.00035616,17]
[356761394,1743137228766,-431.30893341,0.00035616,17]
[356761395,1743137228786,-500.0,0.00035616,17]
[356761396,1743137228806,-500.0,0.00035616,17]
[356761397,1743137228829,-500.0,0.00035616,17]
[356761398,1743137228851,-500.0,0.00035616,17]
[356761399,1743137228874,-559.38283448,0.00035616,17]
[356761400,1743137228897,-537.71,0.00035616,17]
[356761401,1743137228922,-500.0,0.00035616,17]
[356761402,1743137228948,-500.0,0.00035616,17]
[356761403,1743137228971,-500.0,0.00035616,17]
[356761404,1743137228992,-500.0,0.00035616,17]
[356761405,1743137229018,-500.0,0.00035616,17]
[356761406,1743137229039,-1980.27,0.00035616,17]
[356761407,1743137229059,-1838.3,0.00035616,17]
[356761408,1743137229082,-554.71,0.00035616,17]
[356761409,1743137229103,-224.55701196,0.00035616,17]
[356761410,1743137229795,-275.44298804,0.00035616,17]
[356761411,1743137229820,-500.0,0.00035616,17]
[356761412,1743137229843,-500.0,0.00035616,17]
[356761413,1743137229865,-500.0,0.00035616,17]
[356761414,1743137229887,-500.0,0.00035616,17]
[356761415,1743137229909,-815.32,0.00035616,17]
[356761416,1743137229931,-500.0,0.00035616,17]
[356761417,1743137229954,-500.0,0.00035616,17]
[356761418,1743137229974,-990.28,0.00035616,17]
[356761419,1743137229996,-500.0,0.00035616,17]
[356761420,1743137230020,-500.0,0.00035616,17]
[356761421,1743137230043,-500.0,0.00035616,17]
[356761422,1743137230067,-500.0,0.00035616,17]
[356761423,1743137230090,-500.0,0.00035616,17]
[356761424,1743137230114,-500.0,0.00035616,17]
[356761425,1743137230137,-317.58011561,0.00035616,17]
[356761426,1743137230162,-1012.51,0.00035616,17]
[356761427,1743137230189,-535.56476177,0.00035616,17]
[356761428,1743137230221,-500.0,0.00035616,17]
[356761429,1743137230246,-500.0,0.00035616,17]
[356761430,1743137230272,-500.0,0.00035616,17]
[356761431,1743137230296,-500.0,0.00035616,17]
[356761432,1743137230320,-500.0,0.00035616,17]
[356761433,1743137230344,-500.0,0.00035616,17]
[356761434,1743137230366,-500.0,0.00035616,17]
[356761435,1743137230389,-1544.99,0.00035616,17]
[356761436,1743137230583,-500.0,0.00035616,17]
[356761437,1743137230605,-500.0,0.00035616,17]
[356761438,1743137230628,-500.0,0.00035616,17]
[356761439,1743137230649,-500.0,0.00035616,17]
[356761440,1743137230670,-500.0,0.00035616,7]
[356761441,1743137230695,-500.0,0.00035616,17]
[356761442,1743137230715,-500.0,0.00035616,17]
[356761443,1743137230738,-500.0,0.00035616,17]
[356761444,1743137230759,-500.0,0.00035616,17]
[356761445,1743137230779,-500.0,0.00035616,17]
[356761446,1743137230800,-500.0,0.00035616,17]
[356761447,1743137230823,-500.0,0.00035616,17]
[356761448,1743137230847,-500.0,0.00035616,17]
[356761449,1743137230868,-500.0,0.00035616,17]
[356761450,1743137230889,-500.0,0.00035616,17]
[356761451,1743137230909,-500.0,0.00035616,17]
[356761452,1743137230930,-500.0,0.00035616,17]
[356761453,1743137230954,-500.0,0.00035616,17]
[356761454,1743137230975,-1579.03,0.00035616,17]
[356761455,1743137230996,-559.58,0.00035616,17]
[356761456,1743137231019,-500.0,0.00035616,17]
[356761457,1743137231041,-500.0,0.00035616,17]
[356761458,1743137231062,-500.0,0.00035616,17]
[356761459,1743137231083,-500.0,0.00035616,17]
[356761460,1743137231103,-1530.99,0.00035616,17]
[356761461,1743137231124,-500.0,0.00035616,17]
[356761462,1743137231147,-500.0,0.00035616,17]
[356761463,1743137231168,-500.0,0.00035616,17]
[356761464,1743137231193,-500.0,0.00035616,17]
[356761465,1743137231214,-500.0,0.00035616,17]
[356761466,1743137231235,-500.0,0.00035616,17]
[356761467,1743137231256,-500.0,0.00035616,17]
[356761468,1743137231276,-500.0,0.00035616,17]
[356761469,1743137231297,-586.80212305,0.00035616,17]
[356761470,1743137231318,-500.0,0.00035616,17]
[356761471,1743137231338,-500.0,0.00035616,17]
[356761472,1743137231358,-500.0,0.00035616,17]
[356761473,1743137231378,-500.0,0.00035616,17]
[356761474,1743137231400,-500.0,0.00035616,17]
[356761475,1743137231421,-500.0,0.00035616,17]
[356761476,1743137231445,-500.0,0.00035616,17]
[356761477,1743137231466,-500.0,0.00035616,17]
[356761478,1743137231486,-500.0,0.00035616,17]
[356761479,1743137231508,-500.0,0.00035616,17]